bitfinex-derivatives/quotes_ETHF0:USTF0_20260214
["timestamp","ask_amount","ask_price","bid_price","bid_amount"]
[1771077260411,0.00512932,2071.0,2070.4,0.54038733]
[1771077260614,7.44415433,2070.9,2070.4,0.54038733]
[1771077260814,0.00512932,2071.0,2070.4,0.54038733]
[1771077261016,7.44416773,2070.9,2070.4,0.54038733]
[1771077261213,0.00512932,2071.0,2070.4,0.54038733]
[1771077261416,7.44486672,2070.9,2070.4,0.54038733]
[1771077261714,0.00512932,2071.0,2070.4,0.54038733]
[1771077261916,7.444455,2070.9,2070.4,0.54038733]
[1771077262116,0.00512932,2071.0,2070.4,0.54038733]
[1771077262315,7.44468057,2070.9,2070.4,0.54038733]
[1771077262617,0.58995486,2071.0,2070.4,0.54038733]
[1771077262816,7.41534606,2070.9,2070.4,0.54038733]
[1771077263012,0.58995486,2071.0,2070.4,0.54038733]
[1771077263215,7.41533919,2070.9,2070.4,0.54038733]
[1771077263415,0.58995486,2071.0,2070.4,0.54038733]
[1771077263718,0.58482554,2070.8,2070.4,0.54038733]
[1771077264921,0.00512932,2071.0,2070.4,0.54038733]
[1771077265219,7.99632065,2070.9,2070.4,0.54038733]
[1771077265519,0.58482554,2070.9,2070.4,0.54038733]
[1771077266520,0.58482554,2070.9,2070.3,0.78199733]
[1771077266717,0.58482554,2070.7,2070.4,0.54038733]
[1771077267421,0.58482554,2070.9,2070.4,0.54038733]
[1771077267616,7.99679967,2070.8,2070.4,0.54038733]
[1771077267817,0.58482554,2070.8,2070.4,0.54038733]
[1771077268921,0.58482554,2070.8,2070.3,0.78199733]
[1771077269118,0.58482554,2070.6,2070.3,0.78199733]
[1771077270924,0.58482554,2070.6,2070.0,0.54551823]
[1771077271223,0.58482554,2070.4,2069.8,0.54038733]
[1771077272320,0.58482554,2070.4,2069.8,0.54625043]
[1771077272516,0.58482554,2070.4,2069.8,0.0058631]
[1771077273519,0.58482554,2070.4,2069.8,0.57443804]
[1771077273918,0.53562708,2070.2,2069.8,0.57443804]
[1771077274120,0.53562708,2070.2,2069.8,0.0058631]
[1771077274320,0.53562708,2070.2,2069.8,0.57443804]
[1771077277224,0.53562708,2070.7,2069.8,0.57443804]
[1771077277431,0.53562708,2070.5,2069.8,0.57443804]
[1771077277728,0.53562708,2070.4,2069.8,0.57443804]
[1771077283033,0.53562708,2070.4,2069.8,0.0058631]
[1771077283332,0.53562708,2070.4,2069.6,0.57843852]
[1771077284229,0.53562708,2070.4,2069.4,0.57843852]
[1771077284827,0.55095515,2069.8,2069.4,0.57843852]
[1771077285432,0.55095515,2069.8,2069.4,0.58368661]
[1771077285632,40.8,2070.2,2069.3,0.57843852]
[1771077285633,0.55095515,2069.6,2069.3,0.57843852]
[1771077286030,0.55095515,2069.6,2069.2,0.24174]
[1771077286233,0.55095515,2069.6,2069.3,0.57843852]
[1771077286434,0.55095515,2069.6,2069.2,0.82017852]
[1771077286631,0.55095515,2069.6,2069.2,0.82495192]
[1771077287333,0.55095515,2069.6,2069.2,0.2465134]
[1771077288836,0.55095515,2069.6,2069.2,0.82495192]
[1771077290334,0.55095515,2069.8,2069.3,0.57843852]
[1771077290638,0.55095515,2069.6,2069.2,0.82495192]
[1771077292043,0.55095515,2069.7,2069.2,0.82495192]
[1771077293440,0.55095515,2069.6,2069.2,0.58321192]
[1771077296644,0.55095515,2069.7,2069.2,0.58321192]
[1771077296841,0.55095515,2069.8,2069.2,0.58321192]
[1771077297541,0.55095515,2069.8,2068.9,0.57843852]
[1771077297842,0.55095515,2069.5,2068.9,0.57843852]
[1771077298745,0.55448536,2069.5,2068.9,0.58301339]
[1771077306546,0.00353021,2069.5,2068.9,0.58301339]
[1771077306747,0.67004958,2069.5,2069.0,0.24177]
[1771077306947,0.67004958,2069.5,2069.1,0.65972804]
[1771077307953,0.67004958,2069.5,2069.0,0.90149804]
[1771077308253,0.67004958,2069.5,2069.1,0.65972804]
[1771077308458,0.00353021,2069.5,2069.1,0.65972804]
[1771077308646,0.66651937,2069.8,2069.2,0.90146804]
[1771077308850,0.66651937,2069.6,2069.2,0.90146804]
[1771077309547,0.66651937,2069.6,2069.3,0.65972804]
[1771077309753,0.67111506,2069.6,2069.3,0.65972804]
[1771077312961,0.67111506,2069.6,2069.2,0.90146804]
[1771077313259,0.00459569,2069.6,2069.3,0.65972804]
[1771077313461,0.67111506,2069.6,2069.3,0.65972804]
[1771077314261,7.35235429,2069.5,2069.3,0.65972804]
[1771077314561,0.67111506,2069.6,2069.3,0.65972804]
[1771077314762,0.00459569,2069.6,2069.3,0.65972804]
[1771077315061,0.67111506,2069.6,2069.3,0.65972804]
[1771077315262,7.35012043,2069.5,2069.3,0.65972804]
[1771077315462,0.67111506,2069.6,2069.3,0.65972804]
[1771077315765,7.34600173,2069.5,2069.3,0.65972804]
[1771077315969,0.67111506,2069.6,2069.3,0.65972804]
[1771077316169,7.33604186,2069.5,2069.3,0.65972804]
[1771077316371,0.67111506,2069.6,2069.3,0.65972804]
[1771077316570,7.3363587,2069.5,2069.3,0.65972804]
[1771077316770,0.67111506,2069.6,2069.3,0.65972804]
[1771077316971,7.32294018,2069.5,2069.3,0.65972804]
[1771077317173,0.67111506,2069.6,2069.3,0.65972804]
[1771077321472,0.00459569,2069.6,2069.3,0.65972804]
[1771077321773,0.67111506,2069.6,2069.3,0.65972804]
[1771077322573,4.70650227,2070.0,2069.5,0.65972804]
[1771077322780,7.32254093,2069.9,2069.5,0.65972804]
[1771077322974,4.70650227,2070.1,2069.5,0.65972804]
[1771077323183,0.66651937,2069.9,2069.4,0.90144804]
[1771077323678,0.67067002,2069.9,2069.5,0.65972804]
[1771077323979,0.67067002,2069.9,2069.4,0.90144804]
[1771077324281,0.67067002,2069.9,2069.5,0.65972804]
[1771077324676,0.66651937,2069.7,2069.1,0.65972804]
[1771077324876,0.66651937,2069.5,2069.1,0.65972804]
[1771077325078,0.66651937,2069.6,2069.1,0.65972804]
[1771077326177,0.66651937,2069.7,2069.1,0.65972804]
[1771077326376,0.66651937,2069.8,2069.3,0.65972804]
[1771077326680,0.67067002,2069.9,2069.3,0.65972804]
[1771077326882,7.86350385,2069.8,2069.3,0.65972804]
[1771077327077,0.66651937,2069.8,2069.3,0.65972804]
[1771077327876,0.67067002,2069.9,2069.3,0.65972804]
[1771077331081,0.00415065,2069.9,2069.5,0.65972804]
[1771077331477,40.8,2070.2,2068.9,0.00457487]
[1771077331478,0.68257514,2070.1,2069.7,0.67615529]
[1771077332685,0.68767805,2070.1,2069.7,0.67615529]
[1771077333387,0.00510291,2070.1,2069.7,0.67615529]
[1771077333586,41.48257514,2070.3,2069.7,0.67615529]
[1771077334191,0.68257514,2070.3,2069.7,0.67615529]
[1771077334591,0.68737145,2070.3,2069.7,0.67615529]
[1771077335597,0.00479631,2070.3,2069.9,0.67615529]
[1771077335896,0.68257514,2070.5,2069.9,0.67615529]
[1771077336900,0.68814463,2070.5,2069.9,0.67615529]
[1771077341101,0.00556949,2070.5,2070.1,0.7121708]
[1771077341300,0.71661054,2070.5,2070.1,0.7121708]
[1771077341495,0.71661054,2070.5,2070.0,0.24165]
[1771077341703,0.71661054,2070.5,2070.1,0.7121708]
[1771077348609,0.71661054,2070.5,2070.0,0.24165]
[1771077348797,0.71661054,2070.5,2069.7,0.7121708]
[1771077349103,0.71661054,2070.5,2069.6,0.7121708]
[1771077349507,40.8,2070.4,2069.6,0.7121708]
[1771077349705,0.71104105,2070.3,2069.6,0.7121708]
[1771077350206,0.71104105,2070.2,2069.6,0.7121708]
[1771077350408,0.71104105,2070.2,2069.5,0.2417]
[1771077351806,0.71104105,2070.2,2069.6,0.7121708]
[1771077360408,1.98236078,2070.3,2069.8,0.7121708]
[1771077360711,0.71104105,2070.2,2069.8,0.7121708]
[1771077361113,0.72993252,2070.3,2069.8,0.7121708]
[1771077361704,0.72993252,2070.2,2069.7,0.94571069]
[1771077364116,0.72993252,2070.2,2069.8,0.70403069]
[1771077368623,0.72993252,2070.2,2069.7,0.94571069]
[1771077369421,0.72993252,2070.2,2069.8,0.70403069]
[1771077369722,0.72993252,2070.2,2069.7,0.94571069]
[1771077370215,0.72993252,2070.2,2069.8,0.70403069]
[1771077371020,0.72993252,2070.3,2069.9,0.94569069]
[1771077371221,0.72993252,2070.4,2070.0,0.70403069]
[1771077371413,0.72993252,2070.0,2069.6,0.70403069]
[1771077372029,0.72993252,2069.8,2069.4,0.94574069]
[1771077372618,0.72993252,2069.8,2069.5,0.70403069]
[1771077375925,0.72993252,2069.9,2069.5,0.70403069]
[1771077386121,2.00125225,2070.1,2069.5,0.70403069]
[1771077386328,0.72993252,2070.0,2069.5,0.70403069]
[1771077387822,0.72993252,2070.2,2069.5,0.70403069]
[1771077388030,7.84556016,2070.1,2069.7,0.70403069]
[1771077388231,0.72993252,2070.1,2069.7,0.70403069]
[1771077389234,0.72993252,2070.2,2069.7,0.70403069]
[1771077389423,1.27131973,2070.3,2069.6,0.2417]
[1771077389424,0.72993252,2070.0,2069.6,0.2417]
[1771077389629,0.72993252,2069.7,2069.2,0.70403069]
[1771077391435,0.76333054,2069.8,2069.2,0.70403069]
[1771077391633,0.76333054,2070.0,2069.4,0.75448847]
[1771077392739,1.27131973,2070.2,2069.4,0.75448847]
[1771077392932,7.87737367,2070.1,2069.4,0.75448847]
[1771077393239,4.0373652,2070.5,2069.6,0.75448847]
[1771077393536,0.00556949,2070.5,2070.1,0.75448847]
[1771077393733,0.76333054,2070.6,2070.1,0.75448847]
[1771077394737,0.76876733,2070.6,2070.1,0.75448847]
[1771077401034,0.00543679,2070.6,2070.1,0.75448847]
[1771077402043,0.00543679,2070.6,2070.2,0.24163]
[1771077402245,0.72561588,2071.0,2070.3,0.71913429]
[1771077403144,0.73028243,2071.0,2070.3,0.71913429]
[1771077403839,0.73028243,2071.0,2070.4,0.2416]
[1771077403840,0.72561588,2070.8,2070.4,0.2416]
[1771077404044,0.72561588,2070.8,2070.4,0.18293529]
[1771077404832,0.72561588,2070.8,2070.4,0.0048317]
[1771077405037,0.72561588,2070.8,2070.0,0.71913429]
[1771077406041,0.72561588,2070.8,2070.0,0.72493829]
[1771077406845,0.72561588,2070.8,2070.2,0.71913429]
[1771077407648,0.72561588,2070.6,2070.1,0.24164]
[1771077407845,0.72561588,2070.6,2070.1,0.96077429]
[1771077409147,0.72561588,2070.6,2070.2,0.71913429]
[1771077410239,0.72561588,2070.9,2070.2,0.71913429]
[1771077416153,0.72561588,2070.9,2070.4,0.71913429]
[1771077416451,0.72561588,2070.8,2070.3,0.24161]
[1771077416844,0.72561588,2070.8,2070.3,0.96074429]
[1771077417339,0.72561588,2070.8,2070.3,0.24161]
[1771077417943,0.72561588,2070.8,2070.3,0.96074429]
[1771077418548,0.72561588,2070.8,2070.4,0.71913429]
[1771077419850,0.72561588,2070.8,2070.3,0.96074429]
[1771077421148,0.72561588,2070.8,2070.3,0.24161]
[1771077421349,0.00466655,2071.0,2070.5,0.24159]
[1771077421542,0.6839012,2070.8,2070.5,0.24159]
[1771077423558,0.6839012,2070.8,2070.2,0.72119807]
[1771077424064,0.6839012,2070.8,2070.5,0.24159]
[1771077424562,0.6839012,2070.8,2070.0,0.72700207]
[1771077425355,0.6839012,2070.8,2070.0,0.96865207]
[1771077425557,0.6839012,2070.8,2070.1,0.72119807]
[1771077429260,0.6839012,2070.6,2070.0,0.96865207]
[1771077429754,0.6839012,2070.6,2070.3,0.72119807]
[1771077430157,0.6839012,2070.9,2070.3,0.72119807]
[1771077430352,0.6839012,2070.7,2070.3,0.72119807]
[1771077431360,0.6839012,2070.9,2070.3,0.72119807]
[1771077431663,7.70962944,2070.8,2070.3,0.72119807]
[1771077431865,0.6839012,2070.8,2070.3,0.72119807]
[1771077435771,0.6839012,2070.8,2070.2,0.24163]
[1771077435959,0.6839012,2070.8,2070.2,0.96282807]
[1771077436761,0.6839012,2070.8,2070.3,0.72119807]
[1771077439775,0.6839012,2070.8,2070.2,0.24163]
[1771077439970,0.6839012,2070.8,2070.2,0.96282807]
[1771077440369,0.6839012,2070.8,2070.2,0.24163]
[1771077440570,0.6839012,2070.6,2070.2,0.24163]
[1771077457488,0.6839012,2070.6,2070.2,0.9637641]
[1771077459889,0.72200072,2070.8,2070.3,0.7221341]
[1771077460089,7.68855345,2070.7,2070.3,0.7221341]
[1771077460289,0.72200072,2070.7,2070.3,0.7221341]
[1771077460690,0.72200072,2070.7,2070.2,0.94543793]
[1771077460887,0.72200072,2070.7,2070.2,0.24163]
[1771077466389,0.72200072,2070.7,2070.3,0.70380793]
[1771077467697,0.71843197,2070.9,2070.3,0.70380793]
[1771077467897,0.71843197,2070.7,2070.3,0.70380793]
[1771077480502,0.71843197,2070.9,2070.3,0.70380793]
[1771077480701,7.67890766,2070.8,2070.3,0.70380793]
[1771077480998,0.71843197,2070.8,2070.3,0.70380793]
[1771077481799,0.66654087,2071.0,2070.3,0.70380793]
[1771077481998,6.96043602,2070.9,2070.3,0.70380793]
[1771077482193,0.66654087,2071.0,2070.3,0.70380793]
[1771077485004,1.27017612,2070.9,2070.3,0.70380793]
[1771077485301,0.66187432,2070.8,2070.3,0.70380793]
[1771077488605,0.66187432,2070.8,2070.2,0.88431363]
[1771077488802,0.66187432,2070.8,2070.3,0.64268363]
[1771077489806,0.66187432,2070.8,2070.2,0.24163]
[1771077490001,0.66187432,2070.8,2070.2,0.88431363]
[1771077491504,0.66187432,2070.8,2070.3,0.64268363]
[1771077493804,0.66187432,2070.8,2070.2,0.88431363]
[1771077494806,0.66654087,2071.0,2070.3,0.64268363]
[1771077495006,0.66187432,2070.8,2070.3,0.64268363]
[1771077497906,0.66187432,2070.9,2070.3,0.64268363]
[1771077501408,0.66187432,2070.9,2070.5,0.64268363]
[1771077504110,0.66187432,2070.9,2070.4,0.88428363]
[1771077504308,0.66187432,2070.9,2070.5,0.64268363]
[1771077505813,0.66187432,2070.8,2070.4,0.2416]
[1771077506002,0.66187432,2071.2,2070.7,0.64268363]
[1771077506208,0.66187432,2071.0,2070.6,0.88426363]
[1771077506512,0.66187432,2071.0,2070.7,0.64268363]
[1771077507103,0.66187432,2071.2,2070.7,0.64268363]
[1771077507813,0.66654087,2071.2,2070.7,0.64268363]
[1771077508206,0.67053499,2071.2,2070.7,0.64268363]
[1771077509007,0.00866067,2071.2,2070.7,0.64268363]
[1771077509313,0.67053499,2071.2,2070.9,0.64268363]
[1771077509803,40.8,2071.5,2070.8,0.24156]
[1771077509804,0.66187432,2071.4,2070.8,0.88424363]
[1771077510009,0.66187432,2071.4,2070.9,0.64268363]
[1771077510704,0.66801667,2071.4,2070.9,0.64268363]
[1771077512513,0.66801667,2071.4,2070.8,0.24156]
[1771077512714,0.70561808,2071.2,2070.4,0.71930042]
[1771077512913,0.70561808,2071.0,2070.4,0.71930042]
[1771077514711,0.70561808,2071.0,2070.6,0.71930042]
[1771077516811,0.70561808,2071.1,2070.6,0.71930042]
[1771077517409,0.70561808,2071.1,2070.8,0.71930042]
[1771077517915,0.70561808,2071.1,2070.7,0.24157]
[1771077518120,0.70561808,2071.1,2070.7,0.96087042]
[1771077526326,0.70561808,2071.1,2070.7,0.24157]
[1771077527226,0.7058351,2071.0,2070.3,0.6614694]
[1771077529229,0.7058351,2070.8,2070.3,0.6614694]
[1771077531726,0.7058351,2070.8,2070.0,4.013804]
[1771077531933,0.7058351,2071.1,2070.4,0.6614694]
[1771077532232,0.7058351,2070.9,2070.4,0.6614694]
[1771077545241,0.7058351,2070.9,2070.3,0.91885414]
[1771077547947,0.7058351,2070.9,2070.3,0.67724414]
[1771077550949,0.7058351,2070.9,2070.1,0.67724414]
[1771077551145,0.65797461,2070.7,2070.0,0.005804]
[1771077551346,0.65797461,2070.5,2070.0,0.68304814]
[1771077551547,7.32602797,2071.1,2070.0,0.68304814]
[1771077551548,0.65797461,2070.7,2070.0,0.68304814]
[1771077556353,0.65797461,2070.7,2070.0,0.005804]
[1771077559157,0.65797461,2070.5,2070.0,0.005804]
[1771077559356,0.65797461,2070.5,2070.0,0.68304814]
[1771077560449,0.65797461,2070.7,2070.0,0.68304814]
[1771077560649,0.65797461,2070.6,2070.0,0.68304814]
[1771077561157,0.65797461,2070.9,2070.0,0.68304814]
[1771077561456,0.65797461,2070.7,2070.0,0.68304814]
[1771077562860,0.65797461,2070.8,2070.0,0.68304814]
[1771077567965,0.65797461,2070.8,2070.1,0.24164]
[1771077568162,0.65797461,2070.8,2070.2,0.67724414]
[1771077568861,0.65797461,2071.0,2070.4,0.67724414]
[1771077570760,0.65797461,2071.1,2070.6,0.67724414]
[1771077571566,0.00614235,2071.4,2070.6,0.67724414]
[1771077571567,0.63436734,2071.3,2070.6,0.67724414]
[1771077577473,0.63436734,2071.3,2070.8,0.66978455]
[1771077579973,0.64050969,2071.4,2070.8,0.66978455]
[1771077582278,0.64050969,2071.4,2070.7,0.24157]
[1771077588983,0.64050969,2071.4,2070.7,0.86603177]
[1771077589284,0.64050969,2071.4,2070.8,0.62446177]
[1771077592786,0.64050969,2071.4,2070.7,0.24157]
[1771077592988,0.64050969,2071.4,2070.7,0.86603177]
[1771077593286,0.64050969,2071.4,2070.8,0.62446177]
[1771077596985,0.66395885,2071.6,2070.8,0.62446177]
[1771077597194,0.66395885,2072.0,2071.4,0.62446177]
[1771077597389,0.66395885,2071.9,2071.4,0.62446177]
[1771077597999,0.66840296,2071.9,2071.4,0.62446177]
[1771077600299,0.66840296,2071.9,2071.3,0.24149]
[1771077600495,0.66840296,2071.9,2071.3,0.86595177]
[1771077600701,0.66840296,2071.9,2071.4,0.62446177]
[1771077601502,0.00444411,2071.9,2071.4,0.62446177]
[1771077601800,0.59924713,2072.0,2071.4,0.62446177]
[1771077602892,0.60443676,2072.0,2071.4,0.62446177]
[1771077603294,0.00518963,2072.0,2071.4,0.62446177]
[1771077604299,0.60443676,2072.0,2071.3,0.24149]
[1771077604501,0.59924713,2071.8,2071.3,0.24149]
[1771077604710,0.59924713,2071.8,2071.2,0.65188361]
[1771077604900,0.00518963,2072.0,2070.8,0.24156]
[1771077604901,0.59924713,2071.6,2071.0,0.65188361]
[1771077605204,0.00518963,2072.0,2071.0,0.65188361]
[1771077605405,0.59924713,2071.9,2071.0,0.65188361]
[1771077609109,0.59924713,2071.9,2071.2,0.65188361]
[1771077610106,0.59924713,2071.8,2071.1,0.24152]
[1771077610405,0.59924713,2071.8,2071.1,0.89340361]
[1771077610907,0.59924713,2071.8,2071.1,0.24152]
[1771077611108,0.59924713,2071.8,2071.1,0.89340361]
[1771077611510,0.59924713,2071.8,2071.2,0.65188361]
[1771077614009,0.59924713,2071.8,2071.1,0.89340361]
[1771077615910,0.59924713,2071.6,2071.1,0.89340361]
[1771077618114,0.59924713,2071.6,2070.6,0.24158]
[1771077618315,0.59924713,2071.6,2070.7,0.65188361]
[1771077621613,0.59924713,2071.6,2070.8,0.65188361]
[1771077626216,0.59924713,2071.8,2071.0,0.65188361]
[1771077627219,0.59924713,2071.8,2071.2,0.65188361]
[1771077631121,0.59924713,2071.9,2071.2,0.65188361]
[1771077631926,0.63360991,2072.0,2071.4,0.61465613]
[1771077632128,0.00518963,2072.0,2071.6,0.61465613]
[1771077632427,0.62842028,2072.2,2071.6,0.61465613]
[1771077633225,0.62842028,2072.2,2071.6,0.62092407]
[1771077633226,0.63409383,2072.2,2071.6,0.62092407]
[1771077633626,0.00567355,2072.2,2071.8,0.61465613]
[1771077633826,41.42842028,2072.4,2071.8,0.61465613]
[1771077634029,0.62842028,2072.5,2071.8,0.61465613]
[1771077634521,41.42842028,2072.5,2071.8,0.61465613]
[1771077634722,41.43451152,2072.5,2071.8,0.61465613]
[1771077635528,0.62842028,2072.4,2071.8,0.61465613]
[1771077641440,0.62842028,2072.4,2071.7,0.86695006]
[1771077641634,0.62842028,2072.4,2071.8,0.62552006]
[1771077644838,0.00609124,2072.5,2071.8,0.62552006]
[1771077645338,0.63922325,2072.5,2071.8,0.62552006]
[1771077648244,0.00609124,2072.5,2072.0,0.62552006]
[1771077648745,0.63922325,2072.5,2072.0,0.62552006]
[1771077650144,0.00609124,2072.5,2072.0,0.62552006]
[1771077650540,40.8,2072.8,2072.2,0.62552006]
[1771077650734,41.43313201,2072.8,2072.2,0.62552006]
[1771077651445,0.63313201,2072.8,2072.2,0.62552006]
[1771077651646,0.63827642,2072.8,2072.2,0.62552006]
[1771077652240,0.63827642,2072.8,2072.4,0.62552006]
[1771077653044,0.63827642,2072.8,2072.3,0.24136]
[1771077654043,0.63313201,2072.7,2071.9,0.62552006]
[1771077656255,0.63313201,2072.7,2072.1,0.62552006]
[1771077657855,0.63827642,2072.8,2072.3,0.62552006]
[1771077658957,0.63827642,2072.8,2072.2,0.86689006]
[1771077660053,0.63827642,2072.8,2072.2,0.24137]
[1771077660253,0.63827642,2072.8,2072.3,0.62552006]
[1771077660453,0.63827642,2072.8,2072.4,0.62552006]
[1771077660757,0.63313201,2072.9,2072.4,0.62552006]
[1771077661455,0.62969509,2073.0,2072.4,0.62552006]
[1771077661663,0.6349107,2073.0,2072.4,0.62552006]
[1771077663153,0.6349107,2073.0,2072.6,0.59961403]
[1771077663551,0.43381991,2073.0,2072.5,0.84094403]
[1771077663858,0.43381991,2073.0,2072.6,0.59961403]
[1771077664459,0.43781147,2073.0,2072.6,0.59961403]
[1771077665863,0.62969509,2073.1,2072.6,0.59961403]
[1771077666663,0.62969509,2073.2,2072.6,0.59961403]
[1771077667059,0.00548439,2073.2,2072.6,0.59961403]
[1771077668463,0.63517948,2073.2,2072.6,0.59961403]
[1771077669865,4.03530535,2073.7,2073.2,0.59961403]
[1771077669866,0.62969509,2073.7,2073.2,0.59961403]
[1771077670164,0.62969509,2073.7,2073.1,0.24126]
[1771077670359,41.42969509,2073.7,2073.1,0.84087403]
[1771077670556,0.62969509,2073.6,2073.2,0.59961403]
[1771077671062,0.63479773,2073.6,2073.2,0.60369054]
[1771077672766,0.00510264,2073.6,2073.2,0.60369054]
[1771077673167,0.63479773,2073.6,2073.2,0.60369054]
[1771077673466,0.00510264,2073.6,2073.2,0.60369054]
[1771077673769,0.63479773,2073.6,2073.2,0.60369054]
[1771077676563,0.00510264,2073.6,2073.4,0.59961403]
[1771077676765,0.62969509,2073.8,2073.4,0.59961403]
[1771077676959,0.62969509,2073.8,2073.3,0.24124]
[1771077677367,0.62969509,2073.8,2073.3,0.84085403]
[1771077677869,0.63567243,2073.8,2073.4,0.59961403]
[1771077678268,0.63567243,2073.8,2073.3,0.84085403]
[1771077679366,0.63567243,2073.8,2073.2,0.00407651]
[1771077679572,0.62969509,2073.7,2072.9,0.59961403]
[1771077680474,0.62969509,2073.7,2072.9,0.6047824]
[1771077684070,0.62969509,2073.7,2072.9,0.00516837]
[1771077686273,6.70293747,2073.6,2072.9,0.00516837]
[1771077686575,0.62969509,2073.5,2072.9,0.00516837]
[1771077688469,0.62969509,2073.5,2072.6,0.59961403]
[1771077689574,0.62969509,2073.5,2072.6,0.60378339]
[1771077690178,0.62969509,2073.3,2072.6,0.60378339]
[1771077716290,0.58039648,2073.4,2072.8,0.60265827]
[1771077716488,6.72416313,2073.3,2072.8,0.60265827]
[1771077716689,0.58039648,2073.4,2072.8,0.60265827]
[1771077716989,7.30578175,2073.3,2072.8,0.60265827]
[1771077717189,0.58039648,2073.3,2072.8,0.60265827]
[1771077720891,0.58039648,2073.7,2073.0,0.60265827]
[1771077721093,7.30858033,2073.6,2073.0,0.60265827]
[1771077721294,0.58039648,2073.6,2073.0,0.60265827]
[1771077724096,0.61703212,2073.3,2072.1,0.57576622]
[1771077724297,0.61703212,2073.0,2072.1,0.57576622]
[1771077724596,0.61703212,2072.8,2072.1,0.57576622]
[1771077724795,0.61703212,2072.6,2072.1,0.57576622]
[1771077725198,0.61703212,2072.6,2072.1,0.58162143]
[1771077726000,0.61703212,2072.6,2072.1,0.00585521]
[1771077726695,0.61703212,2072.6,2072.0,0.57576622]
[1771077726899,0.61703212,2072.6,2072.0,0.57323803]
[1771077727695,0.61703212,2072.5,2072.0,0.00604142]
[1771077727899,0.61703212,2072.5,2072.0,0.58180764]
[1771077730100,0.61703212,2072.5,2072.0,0.00604142]
[1771077731701,0.61703212,2072.3,2072.0,0.00604142]
[1771077731904,0.61703212,2072.3,2071.7,0.57576622]
[1771077732906,0.62232529,2072.3,2071.7,0.57987145]
[1771077733506,0.00529317,2072.3,2071.7,0.57987145]
[1771077733703,0.61703212,2072.2,2071.7,0.00410523]
[1771077733903,0.61703212,2071.8,2071.2,0.57576622]
[1771077734109,0.61703212,2071.8,2070.8,1.50989843]
[1771077734110,0.61703212,2071.7,2070.9,0.57576622]
[1771077734902,0.61703212,2071.5,2070.9,0.58189883]
[1771077736908,0.61703212,2071.7,2071.1,0.57576622]
[1771077742813,0.61703212,2071.7,2070.9,0.58189883]
[1771077743508,0.61703212,2071.5,2070.9,0.00613261]
[1771077743713,1.88540055,2071.0,2070.4,0.57576622]
[1771077744112,0.61703212,2070.9,2070.4,0.57576622]
[1771077744709,0.61703212,2070.9,2070.4,0.57992244]
[1771077744915,0.61703212,2070.8,2070.4,0.57992244]
[1771077745114,0.62244413,2070.8,2070.4,0.57992244]
[1771077745309,0.62244413,2070.8,2070.3,0.57576622]
[1771077745511,0.00541201,2070.8,2070.3,0.57576622]
[1771077745815,0.62244413,2070.8,2070.3,0.57576622]
[1771077746312,0.00541201,2070.8,2070.3,0.58067068]
[1771077746816,0.62244413,2070.8,2070.3,0.58067068]
[1771077751011,0.00541201,2070.8,2070.3,0.58067068]
[1771077751320,0.61457522,2071.3,2070.5,0.59834598]
[1771077751520,0.61457522,2071.5,2070.7,0.59834598]
[1771077752017,41.41457522,2071.6,2070.7,0.59834598]
[1771077752216,41.41968161,2071.6,2070.7,0.59834598]
[1771077752415,0.61968161,2071.6,2070.7,0.59834598]
[1771077754524,0.00510639,2071.6,2070.9,0.59834598]
[1771077754727,0.61457522,2071.9,2071.1,0.59834598]
[1771077755127,40.8,2072.1,2071.1,0.59834598]
[1771077755329,0.61457522,2072.0,2071.1,0.59834598]
[1771077755828,0.00578151,2072.0,2071.3,0.59834598]
[1771077756329,0.00578151,2072.0,2071.5,0.59834598]
[1771077757426,0.61457522,2072.5,2071.5,0.59834598]
[1771077757629,0.61457522,2072.5,2071.6,0.24144]
[1771077757829,0.61457522,2072.5,2071.7,0.59834598]
[1771077758529,0.61965131,2072.5,2071.7,0.59834598]
[1771077759629,9.99e-06,2072.1,2072.0,0.83973598]
[1771077759834,0.61457522,2072.7,2072.1,0.59834598]
[1771077760432,41.41457522,2072.7,2072.1,0.59834598]
[1771077760628,0.5931079,2073.2,2072.1,0.59834598]
[1771077760834,0.5931079,2073.0,2072.3,0.62235078]
[1771077761132,41.3931079,2072.9,2072.3,0.62235078]
[1771077762034,0.5931079,2072.8,2072.3,0.62235078]
[1771077763737,0.5931079,2072.8,2072.1,0.62802337]
[1771077764538,0.5931079,2072.8,2072.2,0.62235078]
[1771077765931,41.3931079,2072.9,2072.2,0.62235078]
[1771077766733,0.5931079,2072.9,2072.2,0.62235078]
[1771077767935,0.5931079,2072.9,2072.1,0.24705259]
[1771077768242,0.5931079,2072.8,2071.8,0.62235078]
[1771077769141,0.5931079,2072.8,2071.8,0.62765016]
[1771077770442,0.5931079,2072.8,2072.0,0.62235078]
[1771077772745,0.5931079,2072.6,2072.0,0.62235078]
[1771077780357,0.5931079,2072.9,2072.4,0.62235078]
[1771077780864,0.5931079,2072.9,2072.3,0.86371078]
[1771077781155,0.5931079,2072.9,2072.3,0.24136]
[1771077781356,0.5931079,2072.9,2072.4,0.59230094]
[1771077782054,0.5931079,2072.9,2072.6,0.59230094]
[1771077782454,0.62314567,2073.1,2072.6,0.59230094]
[1771077786350,60.83477832,2073.2,2072.6,0.59230094]
[1771077786552,20.65792399,2073.2,2072.6,0.59230094]
[1771077787758,0.62314567,2073.1,2072.6,0.59230094]
[1771077792661,0.00577832,2073.2,2072.8,0.59230094]
[1771077793569,0.62892399,2073.2,2072.8,0.59230094]
[1771077794965,0.00577832,2073.2,2072.8,0.59230094]
[1771077795564,0.62892399,2073.2,2072.8,0.59230094]
[1771077797374,0.62314567,2073.4,2073.0,0.59230094]
[1771077797668,41.42314567,2073.5,2073.0,0.59230094]
[1771077797975,0.62314567,2073.5,2073.0,0.59230094]
[1771077798269,41.42706425,2073.5,2073.0,0.59230094]
[1771077798463,0.62314567,2073.4,2073.0,0.59230094]
[1771077799573,0.00391858,2073.5,2073.0,0.59230094]
[1771077799776,0.62314567,2073.6,2073.0,0.59230094]
[1771077799967,0.62314567,2073.6,2073.2,0.59230094]
[1771077800674,0.00367349,2073.6,2073.2,0.59230094]
[1771077807275,40.8,2074.0,2072.5,5.9368]
[1771077807276,40.8,2074.0,2073.4,0.59230094]
[1771077807976,0.62314567,2074.3,2073.6,0.59230094]
[1771077808374,0.62314567,2074.1,2073.6,0.59849641]
[1771077808675,40.8,2074.2,2073.6,0.59849641]
[1771077809174,0.62876483,2074.3,2073.6,0.59849641]
[1771077809575,40.80561916,2074.3,2073.6,0.59849641]
[1771077809875,41.42876483,2074.3,2073.6,0.59849641]
[1771077810270,0.62876483,2074.3,2073.6,0.59849641]
[1771077810877,0.62876483,2074.3,2073.6,0.00619547]
[1771077811071,0.62876483,2074.3,2073.6,0.59849641]
[1771077812075,0.62876483,2074.3,2073.6,0.60918664]
[1771077812276,0.62876483,2074.3,2073.7,0.84418117]
[1771077812675,0.62876483,2074.3,2073.8,0.60299117]
[1771077814875,0.62876483,2074.3,2073.7,0.84418117]
[1771077815076,0.62876483,2074.3,2073.7,0.24119]
[1771077815276,0.62876483,2074.3,2073.3,0.60299117]
[1771077816276,0.62876483,2074.3,2073.3,0.60649422]